Cogmind - Beta 14 @@@ ROGUE MODE // 2024.08.08 @ 01:20:16 Player: Dzuchun Result: Destroyed by G-34 Mercenary with Small Laser Performance ------------- Evolutions (1) 500 Regions Visited (2) 400 Robots Destroyed (48) 240 Value Destroyed (838) 838 Prototype IDs (4) 80 Alien Tech Used (0) 0 Bonus (33) 33 TOTAL SCORE: 2091 Bonus ------- High Alert Combat Kills 33 Cogmind --------- Core Integrity 0/400 Matter 44/300 Energy 100/100 System Corruption 15% Temperature Cool (6) Movement Core (400) Ox7 Location -9/Materials Parts ------- > --- POWER (1) -------- (None) > --- PROPULSION (2) --- (None) > --- UTILITY (4) ------ Large Storage Unit > --- WEAPON (2) ------- Maul > --- INVENTORY (15) --- Ion Engine Wheel Wheel High-capacity Storage Unit Structural Scanner Sensor Array Improved Terrain Scanner Terrain Scan Processor ECM Suite Mining Claw Peak State ------------ > --- POWER ------------ Light Ion Engine > --- PROPULSION ------- Wheel Wheel > --- UTILITY ---------- Large Storage Unit Visual Processing Unit Signal Interpreter Improved Terrain Scanner > --- WEAPON ----------- Shotgun Grenade Launcher > --- INVENTORY -------- Ion Engine Wheel Wheel High-capacity Storage Unit Structural Scanner Sensor Array Terrain Scan Processor Grenade Launcher Mining Laser [Rating: 14] Favorites ----------- Power Ion Engine Engine Ion Engine Propulsion Light Treads Treads Light Treads Wheel Wheel Utility Visual Processing Unit Device Seismic Detector Storage Large Storage Unit Processor Visual Processing Unit Weapon Shotgun Energy Gun EM Pulse Gun Ballistic Gun Shotgun Launcher Grenade Launcher Special Weapon Mining Laser Impact Weapon Flail Slashing Weapon Mining Claw Build | -11 -10 -9 ------- Run | Yrd Mat Mat Slots Evolved 2 | . . 2 Power . | . . . Propulsion . | . . . Utility 2 | . . 2 Weapon . | . . . Parts Attached 45 | 8 25 12 Power 9 | 2 7 . Engine 9 | 2 7 . Core . | . . . Reactor . | . . . Propulsion 5 | 2 3 . Treads 2 | 2 . . Leg . | . . . Wheel 3 | . 3 . Hover . | . . . Flight . | . . . Utility 11 | 2 6 3 Device 4 | 1 1 2 Storage 4 | 1 3 . Processor 3 | . 2 1 Hackware . | . . . Protection . | . . . Artifact . | . . . Weapon 20 | 2 9 9 Energy Gun 6 | 2 4 . Energy Cannon . | . . . Ballistic Gun 3 | . 1 2 Ballistic Cannon . | . . . Launcher 5 | . 2 3 Special Weapon 3 | . 2 1 Impact Weapon 2 | . . 2 Slashing Weapon 1 | . . 1 Piercing Weapon . | . . . Special Melee Weapon . | . . . Unidentified Prototypes . | . . . Parts Lost 13 | . 4 9 Power 1 | . . 1 Propulsion 4 | . 2 2 Utility 3 | . . 3 Weapon 5 | . 2 3 Highest Loss Streak 9 | . 2 9 To Critical Strikes 1 | . . 1 Average Slot Usage (%) 89 | . 89 92 Engine 13 | . 14 10 Treads 15 | . 17 . Wheel 3 | . . 19 Device 3 | . 2 9 Storage 12 | . 12 11 Processor 13 | . 12 20 Energy Gun 5 | . 6 . Ballistic Gun 9 | . 8 10 Launcher 7 | . 7 7 Special Weapon 4 | . 4 . Peak Build Rating 14 | 7 10 14 Average Rating 8 | 6 8 12 On Entrance 5 | . 7 10 Naked Turns . | . . . Heaviest Build 31 | 15 31 31 Greatest Support 40 | 40 40 20 Greatest Overweight (x) 10 | . 10 9 Average Overweight (x) . | . . 1 Largest Inventory Capacity 15 | 8 15 15 Average Capacity 12 | 7 12 15 Most Carried 13 | 2 13 13 Average Carried 8 | . 8 10 Final Capacity 15 | 8 15 15 Final Carried 11 | 1 11 10 Class Distribution -------------------- 86% | Mutant 13% | Scavenger-Mutant Dominant Class ---------------- Mutant | -10/Materials Scavenger-Mutant | -9/Materials Resources | -11 -10 -9 ----------- Run | Yrd Mat Mat Matter Collected 915 | 280 492 143 Remotely . | . . . Salvage Created 1075 | 164 645 266 Parts 85 | 7 52 26 Haulers Intercepted . | . . . Recyclers Shooed 2 | . 2 . Parts Field Recycled . | . . . Retrieved Matter . | . . . Parts Self-Destructed . | . . . Prevented . | . . . Kills | -11 -10 -9 ------- Run | Yrd Mat Mat Combat Hostiles Destroyed 20 | . 10 10 Melee 1 | . . 1 Guns 8 | . 5 3 AOE 10 | . 4 6 Classes Destroyed 9 | 3 4 2 Worker 11 | 2 7 2 Builder 7 | . 5 2 Tunneler 3 | 1 2 . Recycler 2 | 1 1 . Watcher 5 | . 3 2 Swarmer 6 | . 2 4 Grunt 11 | . 8 3 Brawler 1 | . . 1 Sentry 2 | . . 2 Best Kill Streak 6 | 2 6 6 Combat Bots Only 5 | . 2 5 Max Kills in Single Turn 3 | 2 2 3 Gunslinging . | . . . Exploded 2 | . 1 2 Melee 1 | . . 1 Uniques/NPCs Destroyed . | . . . Combat | -11 -10 -9 -------- Run | Yrd Mat Mat Hostile Shots Fired 191 | . 82 109 Missed 51 | . 22 29 Damage Taken 1901 | . 907 994 Core 572 | . 163 409 Absorbed by Shields 107 | . . 107 Core Remaining (%) 67 | 100 34 . Volleys Fired 119 | 5 81 33 Largest 2 | 2 2 2 Hottest 100 | 80 100 100 Shots Fired 180 | 10 125 45 Gun 144 | 10 102 32 Cannon . | . . . Launcher 27 | . 15 12 Special 9 | . 8 1 Kinetic 68 | . 36 32 Thermal 47 | . 46 1 Explosive 27 | . 15 12 Electromagnetic 38 | 10 28 . Robot Hit Streak 14 | 4 8 14 Robot Miss Streak 6 | 2 5 6 Penetration Max . | . . . Secondary Targets 1 | . 1 . Max Gunslinging Chain 1 | . 1 . Shots Hit Robots 113 | 6 73 34 Core Hits 74 | 5 41 28 Critical Kills 1 | . . 1 Critical Parts Destroyed . | . . . Critical Strikes 2 | . 1 1 Burn 1 | . 1 . Smash 1 | . . 1 Melee Attacks 5 | . . 5 Impact 5 | . . 5 Slashing . | . . . Piercing . | . . . Sneak Attacks . | . . . Combat Hostiles . | . . . Follow-up Attacks . | . . . Damage Inflicted 3050 | 195 1746 1109 Guns 1384 | 90 913 381 Cannons . | . . . Explosions 1530 | 105 824 601 Melee 104 | . . 104 Ramming 32 | . 9 23 Kinetic 737 | . 356 381 Thermal 663 | 105 558 . Explosive 1154 | . 553 601 Electromagnetic 360 | 90 270 . Impact 104 | . . 104 Slashing . | . . . Piercing . | . . . Highest Corruption 15 | . 3 15 Average Corruption 3 | . 2 11 Corruption Purged . | . . . Corruption Blocked . | . . . Effects 41 | . 39 2 Message Errors 8 | . 8 . Matter Fused 7 | . 7 . Heat Flow Errors 7 | . 7 . Energy Discharges 3 | . 3 . Data Loss (minor) 9 | . 7 2 Data Loss (major) 4 | . 4 . Misfires 2 | . 2 . Alerts 1 | . 1 . Overload Shots . | . . . Overflow Damage 54 | . 50 4 Projectiles . | . . . Explosions 54 | . 50 4 Melee . | . . . Knockbacks 1 | . . 1 Impact 1 | . . 1 Kinetic . | . . . Secondary . | . . . Self-Inflicted Damage 249 | . 177 72 Shots 10 | . 7 3 Rammed 4 | . 1 3 Targets Rammed 4 | . 1 3 Kicked . | . . . Crushed . | . . . Highest Temperature 379 | 18 379 25 Average Temperature 91 | 12 107 8 Received Heat Transfer 742 | . 411 331 Effects 2 | . 2 . Shutdowns 1 | . 1 . Energy Bleed 1 | . 1 . Siege Activations . | . . . Robots Corrupted . | . . . Combat Hostiles . | . . . Parts Fried . | . . . Impact Corruptions . | . . . Robots Melted 1 | . 1 . Combat Hostiles 1 | . 1 . Parts Melted 4 | . 4 . Heat Transferred 1375 | 200 1175 . Parts Sabotaged . | . . . Parts Stolen . | . . . Parts Stripped . | . . . Power Chain Reactions 2 | 1 1 . Alert | -11 -10 -9 ------- Run | Yrd Mat Mat Peak Influence 456 | 20 259 456 Initial 109 | . 13 109 Average 86 | 10 72 226 Maximum Alert Level 2 | . 1 2 Low Security (%) 89 | 100 93 61 Level 1 8 | . 6 20 Level 2 2 | . . 17 Level 3 . | . . . Level 4 . | . . . Level 5 . | . . . High Security . | . . . Max Security . | . . . Squads Dispatched 7 | . 2 5 Investigation 4 | . 2 2 Extermination . | . . . Reinforcement 3 | . . 3 Assault . | . . . Garrison . | . . . Intercept . | . . . Searches Triggered . | . . . Construction Impeded 1 | . . 1 Haulers Reinforced . | . . . Active Scanning Responses . | . . . Cargo Convoy Interrupts . | . . . Stealth | -11 -10 -9 --------- Run | Yrd Mat Mat Distress Signals . | . . . Communications Jammed . | . . . Distress Signals . | . . . Times Spotted 37 | . 18 19 Peak Tracking Total 6 | . 3 6 Tactical Retreats 1 | . 1 . Traps | -11 -10 -9 ------- Run | Yrd Mat Mat Traps Triggered 2 | . 2 . Indirectly . | . . . Trap Hack Attempts . | . . . Triggered . | . . . Disarmed . | . . . Reprogrammed . | . . . Reused . | . . . Traps Extracted . | . . . Installed . | . . . Triggered . | . . . Machines | -11 -10 -9 ---------- Run | Yrd Mat Mat Machines Disabled 8 | . 8 . Max in Single Turn 4 | . 4 . Machines Repaired . | . . . Machines Dismantled . | . . . Machines Sabotaged . | . . . Overloaded Fab Kills . | . . . Hacking | -11 -10 -9 --------- Run | Yrd Mat Mat Machines Accessed 11 | . 8 3 Terminals 9 | . 7 2 Fabricators . | . . . Repair Stations 1 | . 1 . Recycling Units 1 | . . 1 Scanalyzers . | . . . Garrison Access . | . . . Total Hacks 37 | . 30 7 Successful 20 | . 16 4 Failed 17 | . 14 3 Catastrophic 2 | . 2 . Database Lockouts . | . . . Manual 24 | . 19 5 Terminals 33 | . 27 6 Fabricators . | . . . Repair Stations 3 | . 3 . Recycling Units 1 | . . 1 Scanalyzers . | . . . Garrison Access . | . . . Terminal Hacks 8 | . 7 1 Prototype ID Bank 2 | . 2 . Branch Access Points 1 | . 1 . Locate Traps 1 | . 1 . Zone Layout 4 | . 3 1 Fabricator Hacks . | . . . Repair Station Hacks 2 | . 2 . Scan Component 1 | . 1 . Repair 1 | . 1 . Recycling Unit Hacks 1 | . . 1 Report Inventory 1 | . . 1 Scanalyzer . | . . . Garrison Access Hacks . | . . . Unauthorized Hacks 9 | . 7 2 Terminals 9 | . 7 2 Botnet 9 | . 7 2 Fabricators . | . . . Repair Stations . | . . . Recycling Units . | . . . Scanalyzers . | . . . Garrison Access . | . . . Data Cores Recovered . | . . . Used . | . . . Hacking Detections 8 | . 6 2 Full Trace Events 7 | . 5 2 Feedback Events . | . . . Feedback Blocked . | . . . Robot Schematics Acquired . | . . . Robots Built . | . . . Authchips . | . . . Time . | . . . Total Robot Build Rating . | . . . Part Schematics Acquired . | . . . Parts Built . | . . . Authchips . | . . . Time . | . . . Total Part Build Rating . | . . . Parts Repaired . | . . . Time 26 | . 26 . Parts Recycled . | . . . Recycled Matter . | . . . Retrieved Matter . | . . . Retrieved Components . | . . . Parts Scanalyzed . | . . . Part Schematics Acquired . | . . . Parts Damaged . | . . . Bothacking | -11 -10 -9 ------------ Run | Yrd Mat Mat Used RIF Installer . | . . . Robots Hacked . | . . . Non-combat . | . . . Combat . | . . . Robot Hacks Applied . | . . . Relay Couplers Released . | . . . Fabnet Peak Effective % . | . . . Robots Rewired . | . . . Allies Hacked . | . . . Hacks Repelled . | . . . Allies | -11 -10 -9 -------- Run | Yrd Mat Mat Total Allies . | . . . Largest Group . | . . . Highest-Rated Group . | . . . Highest-Rated Ally . | . . . Total Orders . | . . . Ally Attacks . | . . . Total Damage . | . . . Kills . | . . . Allies Corrupted . | . . . Allies Melted . | . . . Intel | -11 -10 -9 ------- Run | Yrd Mat Mat Robot Analysis Total . | . . . Derelict Logs Recovered . | . . . Drone Launches . | . . . Drone Recoveries . | . . . Exploration | -11 -10 -9 ------------- Run | Yrd Mat Mat Turns Passed 3186 | 188 2629 369 Spaces Moved 1423 | 88 1112 223 Core 20 | 2 14 4 Treads 1113 | 86 1027 . Legs . | . . . Wheels 290 | . 71 219 Hover . | . . . Flight . | . . . Fastest Speed 50 | 50 95 95 Average Speed 185 | 157 204 101 Slowest Speed 550 | 160 550 500 Overloaded Moves . | . . . Propulsion Burnouts . | . . . Robots Hopped . | . . . Cave-ins Triggered . | . . . Exploration Rate (%) 41 | 4 95 26 Regions Visited 2 Branch Regions . Pre-discovered Areas . | . . . Known Exits Taken . | . . . Unknown Exits Taken 2 | 1 1 . Scrap Searched . | . . . Spaces Dug 8 | . 6 2 Terrain Destroyed 169 | 3 113 53 Melee 1 | . . 1 Projectile 7 | . 6 1 AOE 161 | 3 107 51 Terrain Rammed . | . . . Walls Destroyed . | . . . Machines Disabled . | . . . Actions | -11 -10 -9 --------- Run | Yrd Mat Mat Total 1756 | 124 1320 312 Wait 117 | 22 68 27 Move 1421 | 87 1111 223 Hop . | . . . Pick Up 26 | 1 19 6 Fast Attach 12 | 7 5 . Attach 7 | . 3 4 Detach . | . . . Swap 26 | 1 17 8 Drop 19 | 1 15 3 Fire 119 | 5 81 33 Melee 5 | . . 5 Ram 3 | . . 3 Kick . | . . . Crush 1 | . 1 . Escape Stasis . | . . . Rewire . | . . . Trap . | . . . Miscellaneous . | . . . Route ------- -11/Scrapyard -10/Materials (discovered 5 exits: *Mat x3 / *Min x2) -9/Materials (discovered 1 exit: [*Min]) History --------- Turn | Location | Event 10 | -11/Scrapyard | Discovered new exit (range 15) 189 | -11/Scrapyard | Entered Materials 307 | -10/Materials | Build established: Mutant 463 | -10/Materials | Discovered new exit (range 13) 800 | -10/Materials | Discovered new exit (range 9) 1025 | -10/Materials | Discovered new exit (range 10) 1451 | -10/Materials | Discovered new exit (range 17) 1557 | -10/Materials | Identified exit to Mines 2633 | -10/Materials | Core integrity fell below 50% 2818 | -10/Materials | Entered another Materials area 2818 | -9/Materials | Evolved 2 slots: Utility x2 2874 | -9/Materials | Discovered new exit (range 17) 3028 | -9/Materials | Build established: Scavenger-Mutant 3155 | -9/Materials | System corruption reached 10% 3159 | -9/Materials | Core integrity fell below 50% 3165 | -9/Materials | Core integrity fell below 20% 3187 | -9/Materials | Destroyed by G-34 Mercenary with Small Laser Last Messages --------------- 03157_ System corrupted by crushing effect (+1). 03157_ U-05 Engineer builds a Wall. 03158_ System corrupted: Component data lost. 03161_ G-34 Mercenary destroyed. 03161_ K-01 Serf collects debris. 03161_ U-05 Engineer builds a Wall. 03163_ Critical hit (Smash). 03163_ Visual Processing Unit destroyed. 03163_ System corrupted by crushing effect (+4). 03166_ K-01 Serf collects debris. 03166_ U-05 Engineer lays Concrete. 03170_ M-13 Machinist repairs B-36 Bruiser. 03171_ Knocked back. 03172_ M-13 Machinist repairs Lgt. Armor Plating. 03178_ B-36 Bruiser suffers critical hit (Smash). 03178_ B-36 Bruiser destroyed. 03181_ Acquired 38 matter. 03184_ Shotgun destroyed. 03186_ System corrupted: Component data lost. 03186_ G-34 Mercenary knocked back. Map ----- +----------------------------------------------------+ | ????????????? ?????????????????### """ | | ????????????? ?????????????????#?# """" | | ?????????????? ?????????##+####+### """" | | ?????????????? ???????### # """" | | ?????????????? ???????? # """ | | ?????????????? #?????????? # | | ?????????????? #???########+# # | | ??????????????! #???# #######+ | | ?????????????? #???# | | ?????????????? #???# | | ??????????????# #??## !/ T | | ???????######## #??#" !| #! !!! | | ???????#/ # #??## !/ # !! | | ???????# # #???# ### !! | | ???????# # ##### #?# | | ???????# []! + + #?# | | ???????# [[! # ##############?# ######## | | ???????# [[ # #????#####?#???# #??????# | | ???????######## #????# # #??????# | | ???????# # #????# """ #+#??????# | | ???????#"" # ###### """ "T" #????????# | | ???????#"Y + + """ #????????# | | ???????#"" # ### """ #????????? | | ???????# # gg ### #????????? | | ???????# # *=## #????????? | | ?????########## ##@# #?????????? | | ?????# ##/### ## #+###?????????? | | ?????# T # g # ##+????????? | | ?????# """ # m% = ? | | ?????# """ + [ %[! ? | | ?????# """ # !!%===%%* ? | | ?????# / # # [ *% #######+##?? | | ?????# ### [* [ = ##??????????? | | ?????# ## [ !#????????? | | ?????############ !????????? | | ???????????????# """ + !#???????? | | ???????????????## """"" # !#???????? | | ????????????????# """"" # " !#???????? | | ????????????????# """"" # "%" !##???????? | | ????????????????# """ +? "####????????? | | ????????????????# ?? #?# #???????????? | | ????????????????#######??##?? #???????????? | | ??????????????????????????????#???????????? | | ??????????????????????????????????????????? | | ??????????????????????????????????????????? | | ??????????????????????????????????????????? | | ??????????????????????????????????????????? | | ??????????????????????????????????????????? | | ??????????????????????????????????????????? | | ??????????????????????????????????????????? | +----------------------------------------------------+ Best States ------------- Heat Dissipation 35 Energy Generation 10 Energy Capacity 250 Matter Stores 300 Matter Capacity 300 Sight Range 18 Terrain Scan Range 16 Terrain Scan Density 10 Evasion (%) 41 Targeting Accuracy 5 Recoil Reduction 2 Item Schematics ----------------- None Robot Schematics ------------------ None Fabricated ------------ Nothing Alien Tech Used ----------------- None Achievements -------------- Quantum Hacking True Hacker Challenges ------------ None Game ------ Seed NullResetWell Manual? 0 Play Time 00:37:33 Cumulative 9.9 hours Start 2024.08.08 @ 00:43:40 End 2024.08.08 @ 01:20:16 Sessions 1 Manual Loads 0 Difficulty Rogue Special Mode None Game No. 14 Rogue 14 Adventurer 0 Explorer 0 Win Type - Total 0 Types 0/0/0/0/0/0/0/0/0 Lore% 7 Gallery% 12 Achievement% 14 Wizard Run 0 Options --------- Layout 0 ASCII 0 Keyboard 1 Movement Vi Keybinds 0 Fullscreen 1 Font 18/X11Bold Map View 76x50 Zoom Use 0% Tactical HUD 1 Map Filters NONE Filters NONE Steam 1 RUN: bab234c9-5100-4d9c-9fab-c4a513deb449